lending/lending_fUSD_20240703
["ID","MTS","AMOUNT","RATE_DAILY","PERIOD"]
[330973261,1719977437719,-150.0956725,0.00019206,2]
[330973262,1719977437729,-150.45550808,0.00019238,2]
[330973263,1719977437739,-381.22605199,0.00019253,2]
[330973264,1719977437749,-155.04468759,0.00019257,2]
[330973265,1719977437758,-166.66666667,0.00019263,2]
[330973266,1719977437768,-159.58343704,0.00019283,2]
[330973267,1719977437779,-800.0,0.00019285,2]
[330973268,1719977437788,-420.0,0.00019316,2]
[330973269,1719977437798,-152.97159455,0.00019339,2]
[330973270,1719977437808,-283.55008595,0.00019342,2]
[330973271,1719977437820,-154.41149919,0.00019348,2]
[330973272,1719977437830,-332.88004727,0.00019362,2]
[330973273,1719977437840,-381.22605199,0.00019371,2]
[330973274,1719977437850,-654.98256356,0.00019389,2]
[330973275,1719977437859,-519.45532579,0.00019451,2]
[330973276,1719977437871,-153.54641665,0.00019475,2]
[330973277,1719977437881,-1250.0,0.000195,2]
[330973278,1719977437891,-153.54641665,0.00019509,2]
[330973279,1719977437901,-153.54641665,0.00019512,2]
[330973280,1719977437911,-152.68616389,0.00019542,2]
[330973281,1719977437920,-152.97159455,0.00019547,2]
[330973282,1719977437929,-370.03809408,0.00019548,2]
[330973283,1719977437938,-150.0,0.0001957,2]
[330973284,1719977437950,-283.55008595,0.00019579,2]
[330973285,1719977437961,-172.84248885,0.0001958,2]
[330973286,1719977437971,-654.98256356,0.00019672,2]
[330973287,1719977437981,-150.0,0.00019701,4]
[330973288,1719977437991,-381.22605199,0.0001971,2]
[330973289,1719977438002,-647.15955924,0.0001971,2]
[330973290,1719977438011,-654.98256356,0.00019716,2]
[330973291,1719977438021,-1668.75700185,0.00019725,2]
[330973292,1719977438031,-155.04468759,0.00019738,2]
[330973293,1719977438040,-332.88004727,0.00019742,2]
[330973294,1719977438050,-154.87527334,0.00019751,2]
[330973295,1719977438060,-153.54641665,0.00019769,2]
[330973296,1719977438071,-1341.73620512,0.00019863,2]
[330973297,1719977438080,-150.0,0.00019864,2]
[330973298,1719977438090,-172.84248885,0.00019875,2]
[330973299,1719977438100,-150.45550808,0.00019883,2]
[330973300,1719977438109,-172.84248885,0.0001989,2]
[330973301,1719977438119,-172.84248885,0.00019898,2]
[330973302,1719977438129,-161.20256662,0.00019959,2]
[330973303,1719977438138,-300.0,0.0001999,2]
[330973304,1719977438148,-372.58840707,0.00019997,2]
[330973305,1719977438157,-544.6250011,0.00019997,2]
[330973306,1719977438167,-202.13420091,0.00019999,5]
[330973307,1719977438178,-581.33393112,0.0002,2]
[330973308,1719977438187,-550.6201206,0.0002,2]
[330973309,1719977438199,-1898.570848,0.0002,2]
[330973310,1719977438208,-270.15480938,0.0002,2]
[330973311,1719977438273,-270.15480938,0.0002,2]
[330973312,1719977438283,-270.15480938,0.0002,2]
[330973313,1719977438294,-270.15480938,0.0002,2]
[330973314,1719977438304,-270.15480938,0.0002,2]
[330973315,1719977438314,-270.15480938,0.0002,2]
[330973316,1719977438324,-270.15480938,0.0002,2]
[330973317,1719977438334,-270.15480938,0.0002,2]
[330973318,1719977438344,-270.15480938,0.0002,2]
[330973319,1719977438354,-270.15480938,0.0002,2]
[330973320,1719977438364,-270.15480938,0.0002,2]
[330973321,1719977438374,-151.36240956,0.0002002,2]
[330973322,1719977438384,-381.22605199,0.00020031,2]
[330973323,1719977438395,-154.01077245,0.00020041,2]
[330973324,1719977438404,-155.04468759,0.00020081,2]
[330973325,1719977438414,-332.88004727,0.00020121,2]
[330973326,1719977438424,-647.15955924,0.00020127,2]
[330973327,1719977438434,-150.0,0.00020132,2]
[330973328,1719977438446,-654.98256356,0.00020143,2]
[330973329,1719977438456,-154.41149919,0.00020191,2]
[330973330,1719977438465,-784.0,0.000202,4]
[330973331,1719977438475,-3459.0,0.000202,4]
[330973332,1719977438485,-152.68616389,0.00020202,2]
[330973333,1719977438496,-381.22605199,0.00020216,2]
[330973334,1719977438506,-872.65,0.00020269,2]
[330973335,1719977438516,-150.0,0.00020271,2]
[330973336,1719977438527,-283.55008595,0.00020278,2]
[330973337,1719977438537,-283.55008595,0.00020301,2]
[330973338,1719977438547,-254.54281508,0.00020307,2]
[330973339,1719977438563,-654.98256356,0.00020315,2]
[330973340,1719977438574,-154.01077245,0.00020324,2]
[330973341,1719977438583,-654.98256356,0.00020326,2]
[330973342,1719977438593,-152.97159455,0.00020328,2]
[330973343,1719977438602,-154.87527334,0.00020354,2]
[330973344,1719977438612,-154.87527334,0.00020357,2]
[330973345,1719977438621,-254.54281508,0.00020389,2]
[330973346,1719977438632,-153.54641665,0.00020401,2]
[330973347,1719977438643,-150.0,0.00020416,2]
[330973348,1719977438653,-150.0,0.00020434,2]
[330973349,1719977438663,-152.97159455,0.0002046,2]
[330973350,1719977438672,-150.0,0.00020467,2]
[330973351,1719977438682,-152.26339483,0.00020468,2]
[330973352,1719977438691,-1000.0,0.00020473,2]
[330973354,1719977438704,-154.77233766,0.0002048,2]
[330973355,1719977438713,-647.15955924,0.00020482,2]
[330973357,1719977438721,-150.0,0.00020487,2]
[330973358,1719977438730,-332.88004727,0.00020501,2]
[330973359,1719977438738,-150.0,0.0002051,2]
[330973360,1719977438747,-154.8189548,0.00020526,2]
[330973361,1719977438757,-155.04468759,0.00020529,2]
[330973362,1719977438766,-153.54641665,0.00020539,2]
[330973363,1719977438776,-1000.0,0.00020547,3]
[330973364,1719977438786,-647.15955924,0.00020549,2]
[330973365,1719977438795,-647.15955924,0.00020555,2]
[330973366,1719977438805,-150.45550808,0.00020556,2]
[330973367,1719977438815,-654.98256356,0.00020569,2]
[330973368,1719977438825,-152.68616389,0.00020569,2]
[330973369,1719977438834,-150.0,0.00020573,2]
[330973370,1719977438844,-647.15955924,0.00020579,2]
[330973371,1719977438853,-150.0,0.00020591,2]
[330973372,1719977438863,-150.0,0.00020592,2]
[330973373,1719977438873,-151.0669482,0.00020601,2]
[330973374,1719977438883,-283.55008595,0.00020603,2]
[330973375,1719977438892,-153.54641665,0.00020609,2]
[330973376,1719977438902,-150.0,0.00020625,2]
[330973377,1719977438911,-654.98256356,0.00020636,2]
[330973378,1719977438921,-434.5,0.00020639,2]
[330973379,1719977438930,-166.66666666,0.0002064,2]
[330973380,1719977438939,-150.0,0.00020641,2]
[330973381,1719977438949,-151.77989859,0.00020648,2]
[330973382,1719977438958,-654.98256356,0.00020654,2]
[330973383,1719977438968,-150.0,0.00020657,2]
[330973384,1719977438977,-381.22605199,0.00020657,2]
[330973385,1719977438987,-150.0,0.00020676,2]
[330973386,1719977438996,-283.55008595,0.00020679,2]
[330973387,1719977439005,-150.0,0.00020703,2]
[330973388,1719977439014,-166.66666666,0.00020703,2]
[330973389,1719977439024,-150.0,0.00020717,2]
[330973390,1719977439033,-151.77989859,0.00020745,2]
[330973391,1719977439043,-150.0,0.00020755,2]
[330973392,1719977439053,-150.0,0.00020755,2]
[330973393,1719977439063,-150.0,0.00020759,2]
[330973394,1719977439072,-283.55008595,0.00020788,2]
[330973395,1719977439083,-150.0,0.00020795,2]
[330973396,1719977439093,-647.15955924,0.00020801,2]
[330973397,1719977439103,-172.84248885,0.00020811,2]
[330973398,1719977439113,-1000.0,0.00020821,4]
[330973399,1719977439123,-150.0,0.00020824,2]
[330973400,1719977439133,-154.8189548,0.00020833,2]
[330973401,1719977439143,-1500.0,0.0002085,2]
[330973402,1719977439153,-152.97159455,0.00020863,2]
[330973403,1719977439163,-150.0,0.00020864,2]
[330973404,1719977439173,-654.98256356,0.00020865,2]
[330973405,1719977439184,-153.58809814,0.0002087,2]
[330973406,1719977439196,-152.0,0.00020879,3]
[330973407,1719977439206,-332.88004727,0.00020881,2]
[330973408,1719977439216,-244.0,0.00020888,2]
[330973409,1719977439226,-153.58809814,0.00020891,2]
[330973410,1719977439236,-150.0,0.00020892,2]
[330973411,1719977439246,-153.54641665,0.00020894,2]
[330973412,1719977439255,-150.0,0.00020904,2]
[330973413,1719977439265,-150.0,0.00020929,2]
[330973414,1719977439275,-151.0669482,0.00020933,2]
[330973415,1719977439285,-150.0,0.00020938,2]
[330973416,1719977439296,-150.0,0.00020939,2]
[330973417,1719977439306,-172.84248885,0.00020964,2]
[330973418,1719977439316,-206.97019402,0.00021,2]
[330973419,1719977439326,-203.233329,0.00021,2]
[330973420,1719977439336,-172.84248885,0.00021003,2]
[330973421,1719977439346,-283.55008595,0.00021006,2]
[330973422,1719977439356,-150.0,0.00021009,2]
[330973423,1719977439366,-152.26339483,0.00021021,2]
[330973424,1719977439376,-150.0,0.00021049,2]
[330973425,1719977439386,-587.0,0.00021083,2]
[330973426,1719977439396,-150.0,0.0002109,2]
[330973427,1719977439407,-1000.0,0.00021095,5]
[330973428,1719977439417,-647.15955924,0.00021095,2]
[330973429,1719977439427,-150.0,0.00021097,2]
[330973430,1719977439437,-150.0,0.00021102,2]
[330973431,1719977439448,-150.0,0.0002111,2]
[330973432,1719977439458,-166.66666666,0.00021111,2]
[330973433,1719977439468,-150.0,0.00021115,2]
[330973434,1719977439478,-150.0,0.00021124,2]
[330973435,1719977439487,-153.58809814,0.00021126,2]
[330973436,1719977439497,-152.26339483,0.00021136,2]
[330973437,1719977439507,-150.0,0.00021147,2]
[330973438,1719977439516,-153.54641665,0.00021152,2]
[330973439,1719977439527,-150.0,0.00021159,2]
[330973440,1719977439536,-381.22605199,0.00021163,2]
[330973441,1719977439546,-155.04468759,0.00021175,2]
[330973442,1719977439556,-647.15955924,0.00021179,2]
[330973443,1719977439570,-155.04468759,0.00021182,2]
[330973444,1719977439580,-150.0,0.00021215,2]
[330973445,1719977439590,-1176.70625993,0.00021222,4]
[330973446,1719977439600,-254.54281508,0.00021259,2]
[330973447,1719977439610,-332.88004727,0.00021261,2]
[330973448,1719977439620,-151.0669482,0.00021261,2]
[330973449,1719977439630,-300.0,0.00021263,2]
[330973450,1719977439642,-172.84248885,0.00021271,2]
[330973451,1719977439652,-150.0,0.00021279,2]
[330973452,1719977439663,-150.0,0.00021287,2]
[330973453,1719977439673,-283.55008595,0.00021303,2]
[330973454,1719977439683,-150.0,0.00021313,2]
[330973455,1719977439695,-150.0,0.0002133,2]
[330973456,1719977439704,-446.9569,0.00021339,2]
[330973457,1719977439714,-150.0,0.00021347,2]
[330973458,1719977439724,-647.15955924,0.00021353,2]
[330973459,1719977439734,-381.22605199,0.0002136,2]
[330973460,1719977439744,-1000.0,0.00021369,6]
[330973461,1719977439755,-150.0,0.00021382,2]
[330973462,1719977439765,-150.0,0.00021387,2]
[330973463,1719977439774,-150.45550808,0.00021398,2]
[330973464,1719977439785,-150.0,0.00021408,2]
[330973465,1719977439795,-150.0,0.00021408,2]
[330973466,1719977439805,-381.22605199,0.00021418,2]
[330973467,1719977439816,-161.20256662,0.00021422,2]
[330973468,1719977439827,-381.22605199,0.00021428,2]
[330973469,1719977439837,-150.0,0.00021429,2]
[330973470,1719977439847,-150.0,0.00021439,2]
[330973471,1719977439857,-283.55008595,0.00021446,2]
[330973474,1719977439868,-150.0,0.00021447,2]
[330973475,1719977439878,-300.0,0.0002145,2]
[330973476,1719977439889,-1496.78250717,0.00021454,2]
[330973477,1719977439899,-154.01077245,0.00021461,2]
[330973478,1719977439909,-226.4432324,0.00021478,2]
[330973479,1719977439919,-150.0,0.0002148,2]
[330973480,1719977439930,-152.68616389,0.0002149,2]
[330973481,1719977439940,-154.8189548,0.00021497,2]
[330973482,1719977439952,-150.0,0.00021522,2]
[330973483,1719977439962,-254.54281508,0.00021528,2]
[330973484,1719977439971,-153.58809814,0.0002153,2]
[330973485,1719977439981,-153.54641665,0.00021532,2]
[330973486,1719977439990,-2713.2048,0.0002154,2]
[330973487,1719977440000,-500.0,0.0002154,2]
[330973488,1719977440009,-1000.0,0.0002154,2]
[330973489,1719977440019,-172.66466622,0.0002154,2]
[330973490,1719977440029,-150.0,0.00021553,2]
[330973491,1719977440039,-152.68616389,0.00021575,2]
[330973492,1719977440049,-150.0,0.00021604,2]
[330973493,1719977440059,-155.8695473,0.00021604,2]
[330973494,1719977440069,-155.8695473,0.00021616,2]
[330973495,1719977440078,-152.68616389,0.0002162,2]
[330973496,1719977440088,-150.0,0.0002163,2]
[330973497,1719977440098,-1197.53579444,0.0002163,2]
[330973498,1719977440107,-172.66466619,0.00021632,2]
[330973499,1719977440118,-1197.53579444,0.00021633,2]
[330973500,1719977440128,-150.0,0.00021635,2]
[330973501,1719977440138,-154.8189548,0.00021639,2]
[330973502,1719977440148,-41768.055182,0.0002164,2]
[330973503,1719977440163,-2123.26335576,0.0002164,2]
[330973504,1719977440175,-1525.0,0.0002164,2]
[330973505,1719977440187,-726.24406558,0.0002164,2]
[330973506,1719977440199,-1218.9187,0.0002164,2]
[330973507,1719977440710,-1830.0,0.00018668,2]
[330973508,1719977440720,-266.36569175,0.00018899,2]
[330973509,1719977440729,-330.03302585,0.00018919,2]
[330973510,1719977440739,-270.15480938,0.0002,2]
[330973511,1719977440748,-270.15480938,0.0002,2]
[330973512,1719977440758,-270.15480938,0.0002,2]
[330973513,1719977440768,-270.15480938,0.0002,2]
[330973514,1719977440778,-270.15480938,0.0002,2]
[330973515,1719977440787,-29.93461194,0.0002,2]
[330973516,1719977440798,-240.22019744,0.0002,2]
[330973517,1719977440807,-545.70445025,0.0002164,2]
[330973518,1719977440820,-782.62207443,0.0002164,2]
[330973519,1719977440832,-1116.38675418,0.0002164,2]
[330973520,1719977440844,-2000.14926,0.0002164,2]
[330973521,1719977440855,-1158.72893138,0.0002164,2]
[330973522,1719977440867,-1104.02436803,0.0002164,2]
[330973523,1719977440878,-5808.32989986,0.0002164,2]
[330973524,1719977440889,-374.94082365,0.0002164,2]
[330973525,1719977440900,-3036.84078418,0.0002164,2]
[330973526,1719977440912,-2965.87415929,0.0002164,2]
[330973527,1719977440923,-610.3,0.0002164,2]
[330973528,1719977440934,-1008.16876626,0.0002164,2]
[330973529,1719977440946,-2987.2746585,0.0002164,2]
[330973531,1719977440959,-29139.17376665,0.0002164,2]
[330973532,1719977440969,-6866.667,0.0002164,2]
[330973533,1719977440979,-332.88004727,0.0002164,2]
[330973534,1719977440989,-315.78763447,0.00021641,2]
[330973535,1719977440999,-159.58343704,0.00021642,2]
[330973536,1719977441008,-1000.0,0.00021643,7]
[330973537,1719977441017,-382.94,0.00021644,2]
[330973538,1719977441027,-150.0,0.00021648,2]
[330973539,1719977441035,-150.0,0.00021659,2]
[330973540,1719977441045,-152.46467119,0.00021662,2]
[330973541,1719977441054,-1304.0,0.00021668,2]
[330973542,1719977441063,-283.0,0.00021668,2]
[330973543,1719977441072,-661.313,0.00021668,2]
[330973544,1719977441082,-552.59,0.00021668,2]
[330973545,1719977441091,-5176.0,0.00021668,2]
[330973546,1719977441101,-1663.0,0.00021668,2]
[330973547,1719977441110,-1189.797,0.00021668,2]
[330973548,1719977441120,-291.0,0.00021668,2]
[330973549,1719977441129,-214.38566774,0.00021679,2]
[330973550,1719977441138,-153.58809814,0.00021684,2]
[330973551,1719977441148,-150.0,0.00021687,2]
[330973552,1719977441157,-953.03121734,0.00021693,2]
[330973553,1719977441167,-150.0,0.00021695,2]
[330973554,1719977441176,-623.116,0.000217,2]
[330973555,1719977441185,-150.0,0.00021705,2]
[330973556,1719977441198,-1500.0,0.00021707,2]
[330973557,1719977441207,-1197.53579444,0.0002172,2]
[330973558,1719977441217,-172.66466619,0.00021724,2]
[330973559,1719977441226,-150.0,0.00021726,2]
[330973560,1719977441235,-3592.60738332,0.0002173,2]
[330973561,1719977441244,-152.26339483,0.00021733,2]
[330973562,1719977441253,-150.0,0.00021734,2]
[330973563,1719977441263,-11293.69527998,0.0002174,2]
[330973564,1719977441275,-975.021065,0.0002174,2]
[330973565,1719977441286,-2833.75534537,0.0002174,2]
[330973566,1719977441453,-270.15480938,0.0002,2]
[330973567,1719977441463,-270.15480938,0.0002,2]
[330973568,1719977441472,-368.198,0.00021668,2]
[330973569,1719977441482,-8242.99238124,0.0002174,2]
[330973570,1719977442013,-259.90027057,0.00018668,2]
[330973572,1719977442025,-4547.08758781,0.00018668,2]
[330973574,1719977442036,-1002.01214162,0.00018668,2]
[330973575,1719977442048,-270.15480938,0.0002,2]
[330973576,1719977442057,-270.15480938,0.0002,2]
[330973577,1719977442067,-270.15480938,0.0002,2]
[330973578,1719977442076,-270.15480938,0.0002,2]
[330973579,1719977442086,-270.15480938,0.0002,2]
[330973580,1719977442095,-270.15480938,0.0002,2]
[330973581,1719977442105,-270.15480938,0.0002,2]
[330973582,1719977442115,-270.15480938,0.0002,2]
[330973583,1719977442125,-441.2986613,0.0002174,2]
[330973584,1719977442137,-495.55389865,0.0002174,2]
[330973585,1719977442149,-519.73379976,0.0002174,2]
[330973586,1719977442161,-3600.3252285,0.0002174,2]
[330973587,1719977442172,-798.94857862,0.0002174,2]
[330973588,1719977442183,-762.77621,0.0002174,2]
[330973589,1719977442562,-270.15480938,0.0002,2]
[330973590,1719977442576,-270.15480938,0.0002,2]
[330973591,1719977442585,-686.35187672,0.00021668,2]
[330973592,1719977442597,-1197.8095201,0.00021668,2]
[330973593,1719977442610,-1751.0,0.00021668,2]
[330973594,1719977442621,-583.2607277,0.00021668,2]
[330973595,1719977442632,-1590.57787548,0.00021668,2]
[330973596,1719977442643,-22104.12284405,0.0002174,2]
[330973597,1719977442654,-6858.40489716,0.0002174,2]
[330973598,1719977443635,-270.15480938,0.0002,2]
[330973601,1719977443648,-270.15480938,0.0002,2]
[330973604,1719977443658,-270.15480938,0.0002,2]
[330973607,1719977443668,-34105.24521037,0.0002174,2]
[330973611,1719977443677,-150.0,0.00021741,2]
[330973614,1719977443688,-6279.51081998,0.00021745,2]
[330973616,1719977443699,-1197.53579444,0.00021747,2]
[330973619,1719977443709,-1197.53579444,0.00021747,2]
[330973622,1719977443719,-150.0,0.00021749,2]
[330973625,1719977443728,-150.0,0.0002175,2]
[330973627,1719977443738,-150.0,0.00021755,2]
[330973629,1719977443747,-1500.0,0.00021758,2]
[330973630,1719977443756,-151.06694824,0.00021761,2]
[330973632,1719977443766,-150.0,0.00021764,2]
[330973634,1719977443775,-155.0,0.00021767,2]
[330973636,1719977443785,-166.66666667,0.00021772,2]
[330973638,1719977443795,-1276.03350758,0.00021773,2]
[330973640,1719977443804,-172.84248885,0.00021788,2]
[330973643,1719977443815,-1000.0,0.00021802,2]
[330973644,1719977443825,-500.0,0.00021802,2]
[330973646,1719977443835,-254.54281508,0.00021806,2]
[330973648,1719977443845,-5268.3454,0.00021807,2]
[330973650,1719977443854,-220.31,0.00021808,3]
[330973652,1719977443864,-150.0,0.0002181,2]
[330973654,1719977443873,-172.66466619,0.00021816,2]
[330973656,1719977443882,-1019.0,0.00021817,2]
[330973658,1719977443892,-329.0074,0.00021817,2]
[330973660,1719977443901,-4758.68358661,0.00021817,2]
[330973662,1719977443910,-189.31047238,0.00021817,2]
[330973664,1719977443919,-156.62970523,0.00021817,2]
[330973666,1719977443928,-358.32560856,0.00021817,2]
[330973668,1719977443938,-716.63369653,0.0002182,2]
[330973670,1719977443949,-150.45550808,0.00021833,2]
[330973672,1719977443960,-166.66666668,0.00021836,2]
[330973674,1719977443969,-654.98256356,0.00021888,2]
[330973676,1719977443983,-1197.53579444,0.0002189,2]
[330973678,1719977443992,-129.0823396,0.0002189,2]
[330973696,1719977444151,-670.9176604,0.0002189,2]
[330973701,1719977444161,-150.0,0.0002189,4]
[330973706,1719977444171,-81.39916658,0.0002189,4]
[330973712,1719977444188,-80.41447085,0.0002189,4]
[330973714,1719977444199,-150.45550808,0.00021891,2]
[330973718,1719977444209,-437.19892043,0.00021893,2]
[330973720,1719977444220,-451.5,0.00021893,2]
[330973722,1719977444232,-465.66500004,0.00021893,2]
[330973755,1719977444545,-135.03287939,0.00021893,2]
[330973757,1719977444555,-604.66969723,0.00021894,2]
[330973760,1719977444576,-50.31286633,0.00021894,2]
[330973762,1719977444585,-381.22605199,0.00021895,2]
[330973764,1719977444595,-152.97159455,0.00021895,2]
[330973766,1719977444606,-286.21202756,0.000219,2]
[330973768,1719977444615,-491.0,0.000219,4]
[330973770,1719977444624,-257.0,0.000219,2]
[330973772,1719977444633,-900.0,0.000219,2]
[330973774,1719977444642,-1000.0,0.000219,2]
[330973776,1719977444655,-500.0,0.00021904,2]
[330973778,1719977444665,-1197.53579444,0.00021905,2]
[330973780,1719977444675,-867.54923149,0.00021906,2]
[330973782,1719977444685,-828.51968047,0.00021907,2]
[330973785,1719977444704,-1307.2572906,0.00021907,2]
[330973787,1719977444715,-304.525,0.00021907,2]
[330973789,1719977444726,-11462.42947512,0.00021907,2]
[330973791,1719977444737,-1665.23388151,0.00021907,2]
[330973793,1719977444746,-284.93,0.00021907,2]
[330973795,1719977444756,-284.93,0.00021907,2]
[330973797,1719977444765,-284.93,0.00021907,2]
[330973799,1719977444774,-284.93,0.00021907,2]
[330973801,1719977444784,-284.93,0.00021907,2]
[330973803,1719977444794,-284.93,0.00021907,2]
[330973805,1719977444803,-284.93,0.00021907,2]
[330973807,1719977444815,-284.93,0.00021907,2]
[330973809,1719977444826,-284.93,0.00021907,2]
[330973811,1719977444835,-284.93,0.00021907,2]
[330973813,1719977444845,-153.58809814,0.00021907,2]
[330973815,1719977444855,-172.66466619,0.00021908,2]
[330973817,1719977444864,-358.32560855,0.00021909,2]
[330973819,1719977444874,-365.78699378,0.00021912,2]
[330973821,1719977444883,-500.0,0.00021913,2]
[330973823,1719977444892,-307.14555263,0.00021914,2]
[330973825,1719977444902,-327.27195084,0.00021914,2]
[330973827,1719977444911,-4758.68358659,0.00021915,2]
[330973829,1719977444920,-319.03275939,0.00021916,2]
[330973831,1719977444930,-263.19948615,0.00021916,2]
[330973833,1719977444939,-317439.88984109,0.00021917,7]
[330973835,1719977444952,-419864.33622749,0.00021917,7]
[330973837,1719977444961,-835.17,0.00021917,4]
[330973839,1719977444970,-835.17,0.00021917,4]
[330973841,1719977444979,-835.17,0.00021917,4]
[330973844,1719977444989,-835.17,0.00021917,4]
[330973846,1719977444999,-835.17,0.00021917,4]
[330973848,1719977445008,-835.17,0.00021917,4]
[330973850,1719977445018,-835.17,0.00021917,4]
[330973852,1719977445027,-835.17,0.00021917,4]
[330973854,1719977445036,-835.17,0.00021917,4]
[330973856,1719977445046,-835.17,0.00021917,4]
[330973858,1719977445056,-835.17,0.00021917,4]
[330973860,1719977445065,-835.17,0.00021917,4]
[330973862,1719977445074,-835.17,0.00021917,4]
[330973864,1719977445083,-835.17,0.00021917,4]
[330973866,1719977445092,-835.17,0.00021917,4]
[330973868,1719977445101,-835.17,0.00021917,4]
[330973870,1719977445111,-835.17,0.00021917,4]
[330973872,1719977445120,-835.17,0.00021917,4]
[330973874,1719977445129,-835.17,0.00021917,4]
[330973876,1719977445138,-835.17,0.00021917,4]
[330973878,1719977445147,-835.17,0.00021917,4]
[330973880,1719977445156,-835.17,0.00021917,4]
[330973882,1719977445165,-835.17,0.00021917,4]
[330973884,1719977445175,-835.37813044,0.00021917,4]
[330973886,1719977445184,-666.46,0.00021917,4]
[330973888,1719977445193,-666.46,0.00021917,4]
[330973890,1719977445205,-666.46,0.00021917,4]
[330973892,1719977445214,-666.46,0.00021917,4]
[330973894,1719977445223,-666.46,0.00021917,4]
[330973896,1719977445233,-666.46,0.00021917,4]
[330973899,1719977445243,-666.46,0.00021917,4]
[330973901,1719977445252,-666.46,0.00021917,4]
[330973903,1719977445261,-666.46,0.00021917,4]
[330973904,1719977445272,-666.46,0.00021917,4]
[330973907,1719977445281,-666.46,0.00021917,4]
[330973909,1719977445290,-666.46,0.00021917,4]
[330973911,1719977445299,-666.46,0.00021917,4]
[330973912,1719977445309,-666.46,0.00021917,4]
[330973915,1719977445319,-666.46,0.00021917,4]
[330973917,1719977445329,-666.46,0.00021917,4]
[330973919,1719977445342,-666.46,0.00021917,4]
[330973921,1719977445352,-666.46,0.00021917,4]
[330973923,1719977445362,-666.46,0.00021917,4]
[330973925,1719977445373,-666.46,0.00021917,4]
[330973927,1719977445383,-666.46,0.00021917,4]
[330973930,1719977445394,-666.46,0.00021917,4]
[330973932,1719977445404,-666.46,0.00021917,4]
[330973934,1719977445414,-666.62890716,0.00021917,4]
[330973936,1719977445424,-785.83,0.00021917,4]
[330973938,1719977445434,-785.83,0.00021917,4]
[330973940,1719977445444,-785.83,0.00021917,4]
[330973942,1719977445455,-785.83,0.00021917,4]
[330973944,1719977445464,-785.83,0.00021917,4]
[330973946,1719977445473,-785.83,0.00021917,4]
[330973948,1719977445483,-785.83,0.00021917,4]
[330973950,1719977445492,-785.83,0.00021917,4]
[330973952,1719977445502,-785.83,0.00021917,4]
[330973954,1719977445511,-785.83,0.00021917,4]
[330973956,1719977445521,-785.83,0.00021917,4]
[330973958,1719977445531,-785.83,0.00021917,4]
[330973960,1719977445540,-785.83,0.00021917,4]
[330973962,1719977445550,-785.83,0.00021917,4]
[330973964,1719977445563,-785.83,0.00021917,4]
[330973966,1719977445573,-785.83,0.00021917,4]
[330973968,1719977445583,-785.83,0.00021917,4]
[330973970,1719977445592,-785.83,0.00021917,4]
[330973972,1719977445602,-785.83,0.00021917,4]
[330973974,1719977445613,-785.83,0.00021917,4]
[330973976,1719977445623,-785.83,0.00021917,4]
[330973978,1719977445633,-785.83,0.00021917,4]
[330973980,1719977445646,-785.83,0.00021917,4]
[330973981,1719977445656,-785.92670119,0.00021917,4]
[330973982,1719977445667,-1000.0,0.00021917,8]
[330973983,1719977445676,-1660.14,0.00021917,4]
[330973984,1719977445686,-1660.14,0.00021917,4]
[330973985,1719977445696,-1660.14,0.00021917,4]
[330973986,1719977445706,-1660.14,0.00021917,4]
[330973987,1719977445715,-1660.14,0.00021917,4]
[330973988,1719977445725,-1660.14,0.00021917,4]
[330973989,1719977445735,-305.16704913,0.00021917,4]
[330974051,1719977446344,-335.93390945,0.00021917,4]
[330974062,1719977446438,-2264.26216506,0.00017259,2]
[330974064,1719977446449,-513.18500005,0.00017259,2]
[330974066,1719977446461,-2222.55283489,0.00017259,2]
[330974068,1719977446470,-270.15480938,0.0002,2]